Cogmind - Beta 16 *** ADVENTURER MODE // 2025.10.28 @ 18:03:51 Player: ICDT Result: Self-destructed Performance ------------- Evolutions (2) 1000 Regions Visited (4) 800 Robots Destroyed (5) 25 Value Destroyed (43) 43 Prototype IDs (0) 0 Alien Tech Used (0) 0 Bonus (0) 0 TOTAL SCORE: 1868 Bonus ------- None Cogmind --------- Core Integrity 471/550 Matter 204/300 Energy 64/100 System Corruption 0% Temperature Cool (0) Movement Core (150) Ox2 Location -8/Materials Parts ------- > --- POWER (1) -------- (None) > --- PROPULSION (4) --- (None) > --- UTILITY (4) ------ Small Storage Unit ECM Suite System Shield > --- WEAPON (2) ------- Small Laser Light Assault Rifle > --- INVENTORY (8) ---- Ion Engine Light Ion Engine Weight Redist. System Terrain Scan Processor ECM Suite Peak State ------------ > --- POWER ------------ Ion Engine > --- PROPULSION ------- Improved Hover Unit Improved Hover Unit Improved Hover Unit > --- UTILITY ---------- Small Storage Unit Weight Redist. System Structural Scanner > --- WEAPON ----------- Light Assault Rifle Light Assault Rifle > --- INVENTORY -------- Ion Engine Light Ion Engine Hover Unit Improved Hover Unit Terrain Scan Processor ECM Suite ECM Suite Small Laser [Rating: 14] Favorites ----------- Power Ion Engine Engine Ion Engine Propulsion Improved Hover Unit Hover Unit Improved Hover Unit Utility Small Storage Unit Device Sensor Array Storage Small Storage Unit Processor Salvage Targeting Computer Hackware System Shield Weapon Light Assault Rifle Energy Gun Small Laser Ballistic Gun Light Assault Rifle Build | -11 -10 -9 -9 -8 ------- Run | Yrd Mat Mat Min Mat Slots Evolved 4 | . . 2 . 2 Power . | . . . . . Propulsion 2 | . . 1 . 1 Utility 2 | . . 1 . 1 Weapon . | . . . . . Parts Attached 19 | 2 7 4 2 4 Power 4 | 1 1 . 1 1 Engine 4 | 1 1 . 1 1 Core . | . . . . . Reactor . | . . . . . Propulsion 5 | . 2 2 1 . Treads . | . . . . . Leg . | . . . . . Wheel . | . . . . . Hover 5 | . 2 2 1 . Flight . | . . . . . Utility 7 | 1 2 2 . 2 Device 4 | . 1 2 . 1 Storage 1 | 1 . . . . Processor 1 | . 1 . . . Hackware 1 | . . . . 1 Protection . | . . . . . Artifact . | . . . . . Weapon 3 | . 2 . . 1 Energy Gun 1 | . . . . 1 Energy Cannon . | . . . . . Ballistic Gun 2 | . 2 . . . Ballistic Cannon . | . . . . . Launcher . | . . . . . Special Weapon . | . . . . . Impact Weapon . | . . . . . Slashing Weapon . | . . . . . Piercing Weapon . | . . . . . Special Melee Weapon . | . . . . . Unidentified Prototypes . | . . . . . Parts Lost 10 | . . 2 3 5 Power 2 | . . . 1 1 Propulsion 5 | . . 1 2 2 Utility 2 | . . 1 . 1 Weapon 1 | . . . . 1 Highest Loss Streak 10 | . . 2 5 10 To Critical Strikes . | . . . . . Average Backups 6 | 2 7 6 6 5 Power 1 | 1 1 1 1 1 Propulsion 1 | . 1 1 1 . Utility 1 | . . 1 3 2 Weapon 2 | 1 3 1 1 . Tool/Special . | . . . . . Unused Backups 3 | . 1 . . 2 Power . | . . . . . Propulsion . | . . . . . Utility 2 | . . . . 2 Weapon 1 | . 1 . . . Tool/Special . | . . . . . Average Slot Usage (%) 73 | . 67 93 94 70 Engine 12 | . 13 11 11 7 Hover 26 | . 26 32 27 14 Device 14 | . 12 20 22 15 Storage 12 | . 14 11 11 9 Ballistic Gun 5 | . . 17 22 12 Peak Build Rating 14 | 2 9 14 13 13 Average Rating 8 | 1 7 12 11 11 On Entrance 6 | . 1 8 12 10 Avg Prop Armor Cover (%) . | . . . . . Naked Turns . | . . . . . Heaviest Build 14 | 10 11 13 13 14 Greatest Support 27 | 3 14 27 27 19 Greatest Overweight (x) 3 | 3 1 . . 1 Average Overweight (x) . | 2 . . . . Largest Inventory Capacity 8 | 8 8 8 8 8 Average Capacity 7 | 7 8 8 8 8 Most Carried 8 | 5 8 8 7 6 Average Carried 6 | 3 7 6 5 5 Final Capacity 8 | 8 8 8 8 8 Final Carried 8 | 5 8 8 5 5 Class Distribution -------------------- 88% | Mutant 11% | Hacker-Mutant Dominant Class ---------------- Mutant | -10/Materials Mutant | -9/Materials Mutant | -9/Mines Hacker-Mutant | -8/Materials Resources | -11 -10 -9 -9 -8 ----------- Run | Yrd Mat Mat Min Mat Matter Collected 332 | 218 78 36 . . Remotely . | . . . . . Salvage Created 123 | . 54 36 . 33 Parts 12 | . 3 4 . 5 Haulers Intercepted 1 | . 1 . . . Recyclers Shooed . | . . . . . Parts Field Recycled . | . . . . . Retrieved Matter . | . . . . . Parts Self-Destructed . | . . . . . Prevented . | . . . . . Parts Restored . | . . . . . Kills | -11 -10 -9 -9 -8 ------- Run | Yrd Mat Mat Min Mat Combat Hostiles Destroyed 2 | . . . . 2 Guns 2 | . . . . 2 Classes Destroyed 4 | . 1 2 . 1 Builder 1 | . . 1 . . Hauler 1 | . 1 . . . Watcher 1 | . . 1 . . Swarmer 2 | . . . . 2 Best Kill Streak 2 | . 1 1 . 2 Combat Bots Only 2 | . . . . 2 Max Kills in Single Turn 1 | . 1 1 . 1 Gunslinging . | . . . . . Exploded . | . . . . . Melee . | . . . . . Uniques/NPCs Destroyed . | . . . . . Combat | -11 -10 -9 -9 -8 -------- Run | Yrd Mat Mat Min Mat Hostile Shots Fired 142 | . 42 43 15 42 Missed 45 | . 15 16 5 9 Hits 97 | . 27 27 10 33 Projectile 97 | . 27 27 10 33 Critical Strikes 1 | . . 1 . . Damage Taken 869 | . 254 242 68 305 Core 266 | . 124 41 22 79 Absorbed by Shields . | . . . . . Ignored by Resistances 261 | . 77 73 20 91 Core Remaining (%) 78 | 100 50 . 84 . Volleys Fired 20 | . 3 4 1 12 Largest 2 | . 2 2 2 2 Hottest 60 | . 40 40 40 60 Shots Fired 38 | . 6 8 2 22 Gun 38 | . 6 8 2 22 Cannon . | . . . . . Launcher . | . . . . . Special . | . . . . . Kinetic 28 | . 6 8 2 12 Thermal 10 | . . . . 10 Explosive . | . . . . . Electromagnetic . | . . . . . Robot Hit Streak 15 | . 6 9 3 15 Robot Miss Streak 2 | . . 2 . 1 Penetration Max . | . . . . . Secondary Targets 1 | . . . . 1 Max Gunslinging Chain 1 | . . . . 1 Shots Hit Robots 32 | . 6 4 2 20 Core Hits 11 | . 2 3 1 5 Critical Kills . | . . . . . Critical Parts Destroyed . | . . . . . Critical Strikes . | . . . . . Melee Attacks . | . . . . . Impact . | . . . . . Slashing . | . . . . . Piercing . | . . . . . Sneak Attacks . | . . . . . Combat Hostiles . | . . . . . Follow-up Attacks . | . . . . . Damage Inflicted 269 | . 50 33 17 169 Guns 269 | . 50 33 17 169 Cannons . | . . . . . Explosions . | . . . . . Melee . | . . . . . Ramming . | . . . . . Kinetic 160 | . 50 33 17 60 Thermal 109 | . . . . 109 Explosive . | . . . . . Electromagnetic . | . . . . . Impact . | . . . . . Slashing . | . . . . . Piercing . | . . . . . Highest Corruption . | . . . . . Average Corruption . | . . . . . Corruption Purged . | . . . . . Corruption Blocked . | . . . . . Overload Shots . | . . . . . Overflow Damage . | . . . . . Projectiles . | . . . . . Explosions . | . . . . . Melee . | . . . . . Knockbacks . | . . . . . Impact . | . . . . . Kinetic . | . . . . . Secondary . | . . . . . Self-Inflicted Damage . | . . . . . Shots . | . . . . . Rammed . | . . . . . Targets Rammed . | . . . . . Kicked . | . . . . . Crushed . | . . . . . Highest Temperature 24 | . 8 14 3 24 Average Temperature 7 | . 3 6 2 10 Received Heat Transfer 306 | . 192 114 . . Siege Activations . | . . . . . Martial Activations . | . . . . . Shielding Activations . | . . . . . Robots Disrupted . | . . . . . Combat Hostiles . | . . . . . Robots Corrupted . | . . . . . Combat Hostiles . | . . . . . Parts Fried . | . . . . . Impact Corruptions . | . . . . . Robots Melted . | . . . . . Combat Hostiles . | . . . . . Parts Melted . | . . . . . Heat Transferred 250 | . . . . 250 Parts Sabotaged . | . . . . . Parts Stolen . | . . . . . Parts Stripped . | . . . . . Power Chain Reactions . | . . . . . Alert | -11 -10 -9 -9 -8 ------- Run | Yrd Mat Mat Min Mat Maximum Alert Level . | . . . . . Low Security (%) 100 | 100 100 100 100 100 Level 1 . | . . . . . Level 2 . | . . . . . Level 3 . | . . . . . Level 4 . | . . . . . Level 5 . | . . . . . High Security . | . . . . . Max Security . | . . . . . Peak Influence 65 | . 65 30 . 30 Initial . | . . . . . Average 7 | . 9 8 . 6 Influence Increases 202 | . 105 57 . 40 Destroy 0b10 Robot/C 40 | . . . . 40 Destroy 0b10 Robot/NC 15 | . 5 10 . . Destroy Leader 4 | . 2 2 . . Successful Hack 23 | . 23 . . . Partial Spotted 45 | . . 45 . . Lose Combat Pursuer 75 | . 75 . . . Influence Decreases 202 | . 105 57 . 40 Time Decay 162 | . 105 47 . 10 Lost Part 40 | . . 10 . 30 Squads Dispatched 1 | . 1 . . . Investigation 1 | . 1 . . . Extermination . | . . . . . Reinforcement . | . . . . . Assault . | . . . . . Garrison . | . . . . . Intercept . | . . . . . Searches Triggered . | . . . . . Construction Impeded . | . . . . . Haulers Reinforced . | . . . . . Active Scanning Responses . | . . . . . Cargo Convoy Interrupts . | . . . . . Stealth | -11 -10 -9 -9 -8 --------- Run | Yrd Mat Mat Min Mat Distress Signals 1 | . 1 . . . Communications Jammed . | . . . . . Distress Signals . | . . . . . Times Spotted 27 | . 10 10 3 4 Peak Tracking Total 9 | . 6 9 3 3 Tactical Retreats 2 | . 1 . . 1 ECM-based Alert Blocks 1 | . . . . 1 Traps | -11 -10 -9 -9 -8 ------- Run | Yrd Mat Mat Min Mat Traps Triggered 1 | . 1 . . . Indirectly . | . . . . . Trap Hack Attempts . | . . . . . Triggered . | . . . . . Disarmed . | . . . . . Reprogrammed . | . . . . . Reused . | . . . . . Traps Extracted . | . . . . . Installed . | . . . . . Triggered . | . . . . . Machines | -11 -10 -9 -9 -8 ---------- Run | Yrd Mat Mat Min Mat Machines Disabled . | . . . . . Max in Single Turn . | . . . . . Machines Repaired . | . . . . . Machines Dismantled . | . . . . . Machines Sabotaged . | . . . . . Overloaded Fab Kills . | . . . . . Hacking | -11 -10 -9 -9 -8 --------- Run | Yrd Mat Mat Min Mat Machines Accessed 5 | . 4 1 . . Terminals 5 | . 4 1 . . Fabricators . | . . . . . Repair Stations . | . . . . . Recycling Units . | . . . . . Scanalyzers . | . . . . . Garrison Access . | . . . . . Total Hacks 15 | . 12 3 . . Successful 7 | . 5 2 . . Failed 8 | . 7 1 . . Catastrophic 2 | . 2 . . . Database Lockouts . | . . . . . Manual 9 | . 9 . . . Terminals 15 | . 12 3 . . Fabricators . | . . . . . Repair Stations . | . . . . . Recycling Units . | . . . . . Scanalyzers . | . . . . . Garrison Access . | . . . . . Terminal Hacks 7 | . 5 2 . . Alert Level 1 | . . 1 . . Unreport Threat 1 | . 1 . . . Locate Traps 1 | . 1 . . . Dispatch Records 1 | . 1 . . . Recall Investigation 1 | . 1 . . . Hauler Manifests 1 | . 1 . . . Zone Layout 1 | . . 1 . . Fabricator Hacks . | . . . . . Repair Station Hacks . | . . . . . Recycling Unit Hacks . | . . . . . Scanalyzer . | . . . . . Garrison Access Hacks . | . . . . . Unauthorized Hacks . | . . . . . Terminals . | . . . . . Fabricators . | . . . . . Repair Stations . | . . . . . Recycling Units . | . . . . . Scanalyzers . | . . . . . Garrison Access . | . . . . . Data Cores Recovered . | . . . . . Used . | . . . . . Hacking Detections 5 | . 4 1 . . Full Trace Events 1 | . 1 . . . Feedback Events . | . . . . . Feedback Blocked . | . . . . . Robot Schematics Acquired . | . . . . . Robots Built . | . . . . . Authchips . | . . . . . Time . | . . . . . Total Robot Build Rating . | . . . . . Part Schematics Acquired . | . . . . . Parts Built . | . . . . . Authchips . | . . . . . Time . | . . . . . Total Part Build Rating . | . . . . . Part Studies Acquired . | . . . . . Parts Repaired . | . . . . . Time . | . . . . . Parts Recycled . | . . . . . Recycled Matter . | . . . . . Retrieved Matter . | . . . . . Retrieved Components . | . . . . . Parts Scanalyzed . | . . . . . Part Schematics Acquired . | . . . . . Parts Damaged . | . . . . . Bothacking | -11 -10 -9 -9 -8 ------------ Run | Yrd Mat Mat Min Mat Used RIF Installer . | . . . . . Robots Hacked . | . . . . . Non-combat . | . . . . . Combat . | . . . . . Robot Hacks Applied . | . . . . . Relay Couplers Released . | . . . . . Fabnet Peak Effective % . | . . . . . Robots Rewired . | . . . . . Allies Hacked . | . . . . . Hacks Repelled . | . . . . . Allies | -11 -10 -9 -9 -8 -------- Run | Yrd Mat Mat Min Mat Total Allies . | . . . . . Largest Group . | . . . . . Highest-Rated Group . | . . . . . Highest-Rated Ally . | . . . . . Total Orders . | . . . . . Ally Attacks . | . . . . . Total Damage . | . . . . . Kills . | . . . . . Allies Corrupted . | . . . . . Allies Melted . | . . . . . Intel | -11 -10 -9 -9 -8 ------- Run | Yrd Mat Mat Min Mat Active Infowar (turns) 747 | . 508 145 17 77 Sensors 622 | . 508 114 . . Structural 99 | . . 32 17 50 ECM 77 | . . . . 77 Robot Analysis Total . | . . . . . Derelict Logs Recovered . | . . . . . Drone Launches . | . . . . . Drone Recoveries . | . . . . . Exploration | -11 -10 -9 -9 -8 ------------- Run | Yrd Mat Mat Min Mat Turns Passed 855 | 62 550 149 17 77 Spaces Moved 678 | 36 375 194 21 52 Core 60 | 36 24 . . . Treads . | . . . . . Legs . | . . . . . Wheels . | . . . . . Hover 618 | . 351 194 21 52 Flight . | . . . . . Fastest Speed 50 | 50 56 52 52 56 Average Speed 62 | 150 58 52 52 73 Slowest Speed 200 | 200 100 56 56 116 Overloaded Moves . | . . . . . Propulsion Burnouts . | . . . . . Robots Hopped . | . . . . . Potential Cave-ins . | . . . . . Cave-ins Triggered . | . . . . . Exploration Rate (%) 14 | 3 32 19 12 8 Regions Visited 4 Branch Regions 1 Pre-discovered Areas . | . . . . . Known Exits Taken . | . . . . . Unknown Exits Taken 4 | 1 1 1 1 . Scrap Searched . | . . . . . Spaces Dug . | . . . . . Terrain Destroyed . | . . . . . Melee . | . . . . . Projectile . | . . . . . AOE . | . . . . . Terrain Rammed . | . . . . . Walls Destroyed . | . . . . . Machines Disabled . | . . . . . Actions | -11 -10 -9 -9 -8 --------- Run | Yrd Mat Mat Min Mat Total 1074 | 44 701 235 24 70 Wait 325 | . 304 21 . . Move 674 | 35 374 193 20 52 Hop . | . . . . . Pick Up 22 | 6 9 5 . 2 Fast Attach . | . . . . . Attach 22 | 2 7 8 3 2 Detach 6 | 1 2 3 . . Swap 3 | . . 1 . 2 Drop 2 | . 2 . . . Fire 20 | . 3 4 1 12 Melee . | . . . . . Ram . | . . . . . Kick . | . . . . . Crush . | . . . . . Escape Stasis . | . . . . . Rewire . | . . . . . Trap . | . . . . . Miscellaneous . | . . . . . Route ------- -11/Scrapyard -10/Materials -9/Materials -9/Mines -8/Materials History --------- Turn | Location | Event 13 | -11/Scrapyard | Discovered new exit (range 15) 63 | -11/Scrapyard | Entered Materials 227 | -10/Materials | Discovered new exit (range 12) 316 | -10/Materials | Build established: Mutant 613 | -10/Materials | Entered another Materials area 613 | -9/Materials | Evolved 2 slots: Propulsion x1, Utility x1 758 | -9/Materials | Discovered new exit (range 8) 762 | -9/Materials | Entered Mines 773 | -9/Mines | Discovered new exit (range 6) 779 | -9/Mines | Entered Materials 779 | -8/Materials | Evolved 2 slots: Propulsion x1, Utility x1 856 | -8/Materials | Self-destructed Last Messages --------------- 00773_ K-01 Serf collects debris. 00777_ Imp. Hover Unit destroyed. PARAMETERS=PROPULSION+1,UTILITY+1 LOCATION=UNKNOWN GOAL=ESCAPE 00786_ Acquired System Shield. 00804_ Acquired Lgt. Deuterium Engine. 00805_ Lgt. Assault Rifle destroyed. 00805_ U-05 Engineer works on Material Processor. 00825_ Hover Unit destroyed. 00828_ S-10 Pest destroyed. 00829_ Structural Scanner destroyed. 00831_ S-10 Pest destroyed. 00831_ Switching to secondary target: H-55 Commando. 00832_ Penetrated by Slug. 00838_ Slug penetrates Wall. 00841_ Penetrated by Slug. 00847_ Lgt. Deuterium Engine destroyed. 00850_ Penetrated by Slug. 00856_ Imp. Hover Unit destroyed. Map ----- +----------------------------------------------------+ | ?????????????????????????????????????????????????? | | ?????????????????????????????????????????????????? | | ?????????????????????????????????????????????????? | | ?????????????????????????????????????????????????? | | ?????????????????????????????????????????????????? | | ?????????????????????????????## ????? # ??????? | | ?????????????????????????????## "???" ##??????? | | ????????????????????????????? # """"" ##??????? | | ????????????????????????????? # """ ##??????? | | ????????????????????????????? # ##??????? | | ????????????????????????????? + ##??????? | | ????????????????????????????? # """ ##??????? | | ????????????????????? ??? # ##??????? | | ?????????????????????##+####### [ ##??????? | | ?????????????????????## ###### ##??????? | | ?????????????????????## ! ##??????? | | ?????????????????????## ##??????? | | ?????????????????????## ##??????? | | ?????????????????????#### ##??????? | | ??????????????????????? # ##??????? | | ??????????????????????? #* ##??????? | | ??????????????????????? #[############ ##??????? | | ??????????????????????? #%############ ##??????? | | ??????????????????????? #[##????????## ##??????? | | ??????????????????????? #%##????????## ##??????? | | ??????????????????????? #@##????????## ######## | | ??????????????????????? #=##?????##### ######### | | ???????????????????????##h##????###### # | | ??????????????????????? #????###! + ! | | ???????????????????????? ?????##! # | | ????????????????????????"" ?????##! # """ | | ????????????????????????"" ##???##! # """ | | ???????????????????????""" ##???##! ##### """ | | ??????????????????????? ##???###! ##### """ [ | | ????????????????????????"" ##???#######?## """ ! | | ?????????????????????????? ##????######?## | | ?????????????????????????? ##???????????########## | | ?????????????????????????? ##???????????########## | | ?????????????????????????????????????????????????? | | ?????????????????????????????????????????????????? | | | | | | | | | | | | | | | | | | | | | +----------------------------------------------------+ Best States ------------- Heat Dissipation 31 Energy Generation 14 Energy Capacity 250 Matter Stores 300 Matter Capacity 300 Sight Range 16 Robot Scan Range 14 Terrain Scan Density 10 ECM Strength 1 Additional Mass Support 6 Resistance: KI 20 Resistance: TH 20 Resistance: EX 20 Resistance: EM 20 Resistance: I 20 Resistance: S 20 Resistance: P 20 Evasion (%) 54 Salvage Targeting 1 Offensive Hacking 10 Defensive Hacking 10 Item Schematics ----------------- None Robot Schematics ------------------ None Fabricated ------------ Nothing Repaired ---------- Nothing Studied --------- None Alien Tech Used ----------------- None Achievements -------------- None Challenges ------------ None Game ------ Seed cogmind Manual? 1 Play Time 00:15:36 Cumulative 15.1 hours Start 2025.10.28 @ 17:48:45 End 2025.10.28 @ 18:03:51 Sessions 1 Manual Loads 0 Difficulty Adventurer Special Mode None Game No. 22 Rogue 0 Adventurer 22 Explorer 0 Win Type - Total 0 Types 0/0/0/0/0/0/0/0/0/0 Lore% 2 Gallery% 12 Achievement% 9 Wizard Run 0 Options --------- Layout 0 ASCII 0 Keyboard 0 Movement Mouse Keybinds 0 Fullscreen 2 Font 18/SmallcapsGlow Map View 76x50 Zoom Use 0% Tactical HUD 1 Map Filters NONE Filters LOW_CONTRAST(13,24,33) Steam 1 RUN: c2f7e64c-b5ee-44c7-a4cd-1d6b9dcf66b4